fUST/lending_fUST_20240521
["ID","MTS","AMOUNT","RATE_DAILY","PERIOD"]
[327647438,1716276635043,-204.4918902,0.00035014,2]
[327647439,1716276635053,-204.4918902,0.00035014,2]
[327647440,1716276635066,-204.4918902,0.00035014,2]
[327647441,1716276635075,-204.4918902,0.00035014,2]
[327647442,1716276635084,-17298.87701234,0.00035052,2]
[327647443,1716276635093,-39175.3854874,0.00035052,2]
[327647444,1716276635103,-88888.0,0.00035053,5]
[327647445,1716276635112,-2000.0,0.00035056,2]
[327647446,1716276635121,-2000.0,0.00035065,2]
[327647447,1716276635130,-2000.0,0.00035074,2]
[327647448,1716276635142,-2000.0,0.00035082,2]
[327647449,1716276635151,-2000.0,0.00035091,2]
[327647450,1716276635162,-2000.0,0.000351,2]
[327647451,1716276635171,-301.51775951,0.00035181,7]
[327647452,1716276635180,-500.0,0.00035181,7]
[327647453,1716276635189,-500.0,0.00035181,7]
[327647454,1716276635198,-500.0,0.00035181,7]
[327647455,1716276635207,-1536676.47861269,0.00035182,120]
[327647477,1716276640328,-475.0,0.00026507,2]
[327647478,1716276640338,-500.0,0.00026507,2]
[327647480,1716276640348,-500.0,0.00026507,2]
[327647482,1716276640358,-500.0,0.00026507,2]
[327647483,1716276640368,-51.09686994,0.00026507,2]
[327647485,1716276640380,-448.90313006,0.00026507,2]
[327647487,1716276640390,-500.0,0.00026507,2]
[327647488,1716276640399,-500.0,0.00026507,2]
[327647489,1716276640409,-500.0,0.00026507,2]
[327647490,1716276640418,-500.0,0.00026507,2]
[327647491,1716276640429,-312.15767325,0.00026507,2]
[327647492,1716276640441,-20.80336271,0.00026507,2]
[327647493,1716276640450,-500.0,0.00026507,2]
[327647494,1716276640460,-500.0,0.00026507,2]
[327647495,1716276640471,-500.0,0.00034545,7]
[327647496,1716276640481,-330.98056102,0.00034545,7]
[327647501,1716276641311,-169.01943898,0.00034545,7]
[327647503,1716276641321,-500.0,0.00034545,7]
[327647505,1716276641330,-500.0,0.00034545,7]
[327647507,1716276641340,-500.0,0.00034545,7]
[327647509,1716276641349,-500.0,0.00034545,7]
[327647511,1716276641359,-500.0,0.00034545,7]
[327647513,1716276641369,-331.48789375,0.00034545,7]
[327647515,1716276641378,-500.0,0.00034545,7]
[327647517,1716276641388,-500.0,0.00034545,7]
[327647519,1716276641399,-500.0,0.00034545,7]
[327647521,1716276641409,-500.0,0.00034545,7]
[327647524,1716276641420,-500.0,0.00034545,7]
[327647526,1716276641430,-500.0,0.00034545,7]
[327647527,1716276641440,-500.0,0.00034545,7]
[327647530,1716276641450,-5354.5,0.0003499,3]
[327647532,1716276641460,-500.0,0.00035181,7]
[327647534,1716276641470,-500.0,0.00035181,7]
[327647535,1716276641481,-500.0,0.00035181,7]
[327647538,1716276641491,-427.78052589,0.00035181,7]
[327647540,1716276641502,-592.55122622,0.00035181,7]
[327647542,1716276641512,-500.0,0.00035181,7]
[327647544,1716276641522,-500.0,0.00035181,7]
[327647546,1716276641532,-500.0,0.00035181,7]
[327647548,1716276641543,-500.0,0.00035181,7]
[327647550,1716276641553,-500.0,0.00035181,7]
[327647552,1716276641563,-500.0,0.00035181,7]
[327647554,1716276641573,-500.0,0.00035181,7]
[327647556,1716276641583,-4296.12266837,0.00035182,15]
[327647558,1716276641592,-22628.49114879,0.00035182,120]
[327647745,1716276644310,-167.496942,0.00024384,2]
[327647747,1716276644320,-892.90710201,0.00035182,120]
[327647750,1716276644331,-545.30086343,0.00035182,120]
[327647805,1716277037557,192618.06281075,0.00024,60]
[327647806,1716277037617,1000000.0,0.00024,60]
[327647807,1716277037643,20000.0,0.00024,60]
[327647810,1716277465088,266.61015013,9.999e-05,7]
[327647811,1716277471964,155.0294556,9.999e-05,2]
[327647812,1716277508585,281.64360019,9.999e-05,2]
[327647813,1716277515152,291.72272882,0.00014382,2]
[327647814,1716277516138,19256.26797269,9.999e-05,2]
[327647815,1716277519961,155.58903881,9.999e-05,2]
[327647816,1716277523758,227.47026555,9.999e-05,2]
[327647817,1716277526591,281.64360019,9.999e-05,2]
[327647818,1716277533844,16152.15406797,9.999e-05,2]
[327647819,1716277534114,19256.26797269,9.999e-05,2]
[327647820,1716277534461,603.425862,9.999e-05,2]
[327647821,1716277540220,291.72272882,0.00014382,2]
[327647822,1716277541884,155.69659763,9.999e-05,2]
[327647823,1716277542600,280.82732857,9.999e-05,2]
[327647824,1716277549102,2090.39867159,9.999e-05,2]
[327647825,1716277551853,9719.86620981,9.999e-05,2]
[327647826,1716277552124,15313.02329388,9.999e-05,2]
[327647827,1716277559453,424.93132164,0.00014382,2]
[327647828,1716277559514,3373.78266972,9.999e-05,2]
[327647829,1716277563106,2090.39867159,9.999e-05,2]
[327647830,1716277568917,517.25011757,9.999e-05,2]
[327647831,1716277570635,365.04735832,9.999e-05,2]
[327647832,1716277575482,633.90016098,9.999e-05,2]
[327647871,1716277831719,-371.21737233,9.897e-05,2]
[327647873,1716277831729,-13171.27741131,9.898e-05,2]
[327647875,1716277831739,-999.67597385,9.999e-05,2]
[327647877,1716277831749,-2096.93012572,9.999e-05,2]
[327647879,1716277831758,-431.04176464,9.999e-05,2]
[327647881,1716277831768,-365.04735832,9.999e-05,2]
[327647883,1716277831777,-161.1405923,9.999e-05,2]
[327647885,1716277831787,-155.11152564,9.999e-05,2]
[327647887,1716277831796,-155.08797204,9.999e-05,2]
[327647888,1716277831805,-266.61015013,0.00014999,7]
[327647890,1716277831814,-285.71224732,0.00015,2]
[327647892,1716277831823,-68088.04491773,0.00015,2]
[327647894,1716277831833,-402.283908,0.00017666,2]
[327647896,1716277831843,-5587.7862237,0.00017667,2]
[327647899,1716277831852,-1015.61125529,0.00017983,2]
[327647901,1716277831861,-10454.14770375,0.00017999,2]
[327647903,1716277831871,-7359.38575588,0.00018,2]
[327647905,1716277831880,-501.11,0.00019166,3]
[327647906,1716277831889,-501.06,0.00019166,3]
[327647909,1716277831899,-264.38756781,0.00019176,2]
[327647911,1716277831908,-820.16152218,0.00019176,2]
[327647913,1716277831918,-2367.68599063,0.00019176,2]
[327647915,1716277831928,-155.02241068,0.00019176,2]
[327647916,1716277831937,-155.03051276,0.00019176,2]
[327647919,1716277831947,-283.61954496,0.00019176,2]
[327647920,1716277831956,-523.04403138,0.00019176,2]
[327647922,1716277831966,-266.43867809,0.00019176,2]
[327647924,1716277831975,-1581.58969394,0.00019176,2]
[327647926,1716277831984,-210.32418682,0.00019176,2]
[327647928,1716277831993,-835.50091713,0.00019177,2]
[327647930,1716277832002,-3560.40850704,0.00019178,2]
[327647932,1716277832011,-3560.40850704,0.00019178,2]
[327647934,1716277832021,-3560.40850704,0.00019178,2]
[327647936,1716277832031,-3560.40850704,0.00019178,2]
[327647938,1716277832040,-3560.40850704,0.00019178,2]
[327647940,1716277832050,-3560.40850704,0.00019178,2]
[327647942,1716277832060,-3560.40850704,0.00019178,2]
[327647944,1716277832069,-3560.40850704,0.00019178,2]
[327647946,1716277832079,-1831.31117682,0.00019178,2]
[327647949,1716277832091,-1729.09733022,0.00019178,2]
[327647951,1716277832100,-3560.40850704,0.00019178,2]
[327647953,1716277832110,-3560.40850704,0.00019178,2]
[327647955,1716277832119,-3560.40850704,0.00019178,2]
[327647957,1716277832128,-3560.40850704,0.00019178,2]
[327647959,1716277832137,-3560.40850704,0.00019178,2]
[327647961,1716277832147,-3560.40850704,0.00019178,2]
[327647963,1716277832157,-3560.40850704,0.00019178,2]
[327647965,1716277832166,-3560.40850704,0.00019178,2]
[327647967,1716277832175,-3560.40850704,0.00019178,2]
[327647969,1716277832185,-3560.40850704,0.00019178,2]
[327647970,1716277832194,-3560.40850704,0.00019178,2]
[327647972,1716277832204,-312.78475745,0.00019178,2]
[327647975,1716277832216,-3247.62374959,0.00019178,2]
[327647977,1716277832225,-3560.40850704,0.00019178,2]
[327647979,1716277832234,-2701.0297999,0.00019178,2]
[327648095,1716277837821,-859.37870714,0.00019178,2]
[327648097,1716277837830,-3560.40850704,0.00019178,2]
[327648099,1716277837839,-3560.40850704,0.00019178,2]
[327648101,1716277837848,-3560.40850704,0.00019178,2]
[327648103,1716277837858,-3560.40850704,0.00019178,2]
[327648105,1716277837867,-3560.40850704,0.00019178,2]
[327648106,1716277837877,-87.64239262,0.00019178,2]
[327648109,1716277837890,-3472.76611442,0.00019178,2]
[327648111,1716277837900,-1518.37024553,0.00019178,2]
[327648113,1716277837913,-2042.03826151,0.00019178,2]
[327648115,1716277837922,-3560.40850704,0.00019178,2]
[327648117,1716277837932,-964.20638892,0.00019178,2]
[327648197,1716277840633,-189.39780232,0.00019178,2]
[327648198,1716277840649,-903.05452889,0.00019178,2]
[327648226,1716277849759,-1503.74978691,0.00019178,2]
[327648227,1716277849770,-3560.40850704,0.00019178,2]
[327648228,1716277849779,-3560.40850704,0.00019178,2]
[327648229,1716277849788,-3560.40850704,0.00019178,2]
[327648230,1716277849798,-793.28233847,0.00019178,2]
[327648231,1716277849807,-3560.40850704,0.00019178,2]
[327648232,1716277849816,-793.28233847,0.00019178,2]
[327648233,1716277849825,-3560.40850704,0.00019178,2]
[327648234,1716277849835,-793.28233847,0.00019178,2]
[327648235,1716277849844,-793.28233847,0.00019178,2]
[327648236,1716277849853,-793.28233847,0.00019178,2]
[327648237,1716277849862,-793.28233847,0.00019178,2]
[327648238,1716277849871,-793.28233847,0.00019178,2]
[327648239,1716277849881,-793.28233847,0.00019178,2]
[327648240,1716277849890,-793.28233847,0.00019178,2]
[327648241,1716277849899,-793.28233847,0.00019178,2]
[327648242,1716277849908,-3560.40850704,0.00019178,2]
[327648243,1716277849918,-793.28233847,0.00019178,2]
[327648244,1716277849928,-793.28233847,0.00019178,2]
[327648245,1716277849937,-793.28233847,0.00019178,2]
[327648246,1716277849947,-3560.40850704,0.00019178,2]
[327648247,1716277849955,-793.28233847,0.00019178,2]
[327648248,1716277849965,-793.28233847,0.00019178,2]
[327648249,1716277849974,-793.28233847,0.00019178,2]
[327648250,1716277849983,-3560.40850704,0.00019178,2]
[327648251,1716277849993,-793.28233847,0.00019178,2]
[327648252,1716277850002,-3560.40850704,0.00019178,2]
[327648253,1716277850011,-793.28233847,0.00019178,2]
[327648254,1716277850022,-3560.40850704,0.00019178,2]
[327648255,1716277850031,-793.28233847,0.00019178,2]
[327648256,1716277850041,-793.28233847,0.00019178,2]
[327648257,1716277850050,-3560.40850704,0.00019178,2]
[327648258,1716277850059,-793.28233847,0.00019178,2]
[327648259,1716277850068,-3560.40850704,0.00019178,2]
[327648260,1716277850078,-793.28233847,0.00019178,2]
[327648261,1716277850086,-793.28233847,0.00019178,2]
[327648262,1716277850096,-793.28233847,0.00019178,2]
[327648263,1716277850104,-793.28233847,0.00019178,2]
[327648264,1716277850113,-793.28233847,0.00019178,2]
[327648265,1716277850123,-793.28233847,0.00019178,2]
[327648266,1716277850132,-793.28233847,0.00019178,2]
[327648267,1716277850142,-793.28233847,0.00019178,2]
[327648268,1716277850151,-793.28233847,0.00019178,2]
[327648269,1716277850160,-793.28233847,0.00019178,2]
[327648270,1716277850170,-793.28233847,0.00019178,2]
[327648271,1716277850179,-793.28233847,0.00019178,2]
[327648272,1716277850188,-793.28233847,0.00019178,2]
[327648273,1716277850197,-793.28233847,0.00019178,2]
[327648274,1716277850206,-793.28233847,0.00019178,2]
[327648275,1716277850216,-793.28233847,0.00019178,2]
[327648276,1716277850225,-793.28233847,0.00019178,2]
[327648277,1716277850234,-793.28233847,0.00019178,2]
[327648278,1716277850244,-793.28233847,0.00019178,2]
[327648279,1716277850253,-793.28233847,0.00019178,2]
[327648280,1716277850262,-793.28233847,0.00019178,2]
[327648281,1716277850272,-793.28233847,0.00019178,2]
[327648282,1716277850388,-793.28233847,0.00019178,2]
[327648283,1716277850398,-793.28233847,0.00019178,2]
[327648284,1716277850408,-793.28233847,0.00019178,2]
[327648285,1716277850417,-793.28233847,0.00019178,2]
[327648286,1716277850427,-793.28233847,0.00019178,2]
[327648287,1716277850436,-793.28233847,0.00019178,2]
[327648288,1716277850446,-793.28233847,0.00019178,2]
[327648289,1716277850461,-793.28233847,0.00019178,2]
[327648290,1716277850470,-793.28233847,0.00019178,2]
[327648291,1716277850479,-793.28233847,0.00019178,2]
[327648292,1716277850488,-793.28233847,0.00019178,2]
[327648293,1716277850499,-793.28233847,0.00019178,2]
[327648294,1716277850508,-793.28233847,0.00019178,2]
[327648295,1716277850517,-793.28233847,0.00019178,2]
[327648296,1716277850526,-793.28233847,0.00019178,2]
[327648297,1716277850538,-793.28233847,0.00019178,2]
[327648298,1716277850548,-793.28233847,0.00019178,2]
[327648299,1716277850557,-793.28233847,0.00019178,2]
[327648300,1716277850569,-6495.64394359,0.00019178,2]
[327648301,1716277850577,-6495.64394359,0.00019178,2]
[327648302,1716277850586,-6495.64394359,0.00019178,2]
[327648303,1716277850596,-6495.64394359,0.00019178,2]
[327648304,1716277850605,-6495.64394359,0.00019178,2]
[327648305,1716277850614,-6495.64394359,0.00019178,2]
[327648306,1716277850624,-6495.64394359,0.00019178,2]
[327648307,1716277850633,-6495.64394359,0.00019178,2]
[327648308,1716277850643,-6495.64394359,0.00019178,2]
[327648309,1716277850652,-6495.64394359,0.00019178,2]
[327648310,1716277850662,-6495.64394359,0.00019178,2]
[327648311,1716277850671,-6495.64394359,0.00019178,2]
[327648312,1716277850681,-6495.64394359,0.00019178,2]
[327648313,1716277850690,-6495.64394359,0.00019178,2]
[327648314,1716277850699,-6495.64394359,0.00019178,2]
[327648315,1716277850708,-6495.64394359,0.00019178,2]
[327648316,1716277850717,-6495.64394359,0.00019178,2]
[327648317,1716277850727,-6495.64394359,0.00019178,2]
[327648318,1716277850736,-6495.64394359,0.00019178,2]
[327648319,1716277850745,-6495.64394359,0.00019178,2]
[327648320,1716277850755,-787.81142578,0.00019178,2]
[327648321,1716277850764,-6495.64394359,0.00019178,2]
[327648322,1716277850773,-787.81142578,0.00019178,2]
[327648323,1716277850782,-787.81142578,0.00019178,2]
[327648324,1716277850791,-787.81142578,0.00019178,2]
[327648325,1716277850801,-787.81142578,0.00019178,2]
[327648326,1716277850810,-6495.64394359,0.00019178,2]
[327648327,1716277850821,-787.81142578,0.00019178,2]
[327648328,1716277850830,-787.81142578,0.00019178,2]
[327648329,1716277850839,-787.81142578,0.00019178,2]
[327648330,1716277850849,-787.81142578,0.00019178,2]
[327648331,1716277850858,-787.81142578,0.00019178,2]
[327648332,1716277850867,-787.81142578,0.00019178,2]
[327648333,1716277850876,-787.81142578,0.00019178,2]
[327648334,1716277850885,-787.81142578,0.00019178,2]
[327648335,1716277850895,-787.81142578,0.00019178,2]
[327648336,1716277850905,-787.81142578,0.00019178,2]
[327648337,1716277850914,-787.81142578,0.00019178,2]
[327648338,1716277850923,-787.81142578,0.00019178,2]
[327648339,1716277850933,-787.81142578,0.00019178,2]
[327648340,1716277850942,-787.81142578,0.00019178,2]
[327648341,1716277850952,-787.81142578,0.00019178,2]
[327648342,1716277850961,-787.81142578,0.00019178,2]
[327648343,1716277850970,-787.81142578,0.00019178,2]
[327648344,1716277850979,-787.81142578,0.00019178,2]
[327648345,1716277850988,-787.81142578,0.00019178,2]
[327648346,1716277850998,-787.81142578,0.00019178,2]
[327648347,1716277851007,-787.81142578,0.00019178,2]
[327648348,1716277851017,-787.81142578,0.00019178,2]
[327648349,1716277851026,-787.81142578,0.00019178,2]
[327648350,1716277851035,-6495.64394357,0.00019178,2]
[327648351,1716277851044,-6495.64394357,0.00019178,2]
[327648352,1716277851054,-787.81142574,0.00019178,2]
[327648353,1716277851063,-6495.64394356,0.00019178,2]
[327648354,1716277851073,-4693.15522604,0.0002,2]
[327648355,1716277851082,-1236.54,0.0002,2]
[327648356,1716277851092,-235.43495783,0.00020896,2]
[327648357,1716277851101,-305.71239995,0.00020896,2]
[327648358,1716277851110,-173.85199712,0.00020908,2]
[327648359,1716277851119,-10578.1808263,0.00020909,2]
[327648360,1716277851129,-3400.51505301,0.000219,2]
[327648361,1716277851138,-7183.436445,0.00021918,2]
[327648362,1716277851147,-1000.0,0.00023,7]
[327648363,1716277851156,-248.3,0.00023461,3]
[327648364,1716277851165,-3123.56657848,0.00023491,2]
[327648365,1716277851174,-156.80820642,0.00023999,2]
[327648366,1716277851183,-9666.81678454,0.00024,15]
[327648367,1716277851193,-1130517.43585974,0.00024,60]
[327648368,1716277851202,-12325.94994712,0.00024,2]
[327648369,1716277851212,-196.290566,0.00024384,2]
[327648370,1716277851221,-1356.91689391,0.00025,5]
[327648371,1716277851230,-6894.23889232,0.00026573,2]
[327648372,1716277851240,-1582.7810599,0.000266,2]
[327648373,1716277851249,-248.3,0.00026783,5]
[327648374,1716277851258,-3400.51505301,0.000269,2]
[327648375,1716277851267,-248.3,0.00030104,7]
[327648376,1716277851277,-196.290566,0.0003031,2]
[327648377,1716277851286,-3400.51505301,0.000319,2]
[327648378,1716277851295,-1000.0,0.00032,12]
[327648379,1716277851305,-151.01812217,0.00032882,2]
[327648380,1716277851314,-1000.0,0.00033,13]
[327648381,1716277851326,-248.3,0.00033426,7]
[327648382,1716277851335,-302.03624435,0.00033435,4]
[327648383,1716277851345,-604.0724887,0.00033997,7]
[327648384,1716277851354,-1000.0,0.00034,14]
[327648385,1716277851363,-293.4286417,0.00034416,2]
[327648386,1716277851372,-153.0,0.00034416,2]
[327648387,1716277851381,-153.0,0.00034416,2]
[327648388,1716277851390,-153.0,0.00034416,2]
[327648389,1716277851399,-291.4199223,0.00034416,2]
[327648390,1716277851409,-153.0,0.00034416,2]
[327648391,1716277851419,-153.0,0.00034416,2]
[327648392,1716277851429,-291.4199223,0.00034416,2]
[327648393,1716277851440,-153.0,0.00034416,2]
[327648394,1716277851451,-153.0,0.00034416,2]
[327648395,1716277851465,-153.0,0.00034416,2]
[327648396,1716277851474,-291.4199223,0.00034416,2]
[327648397,1716277851483,-153.0,0.00034416,2]
[327648398,1716277851492,-153.0,0.00034416,2]
[327648399,1716277851503,-290.8141543,0.00034416,2]
[327648400,1716277851512,-153.0,0.00034416,2]
[327648401,1716277851521,-5439.0,0.0003457,2]
[327648402,1716277851532,-187.0,0.00034576,13]
[327648403,1716277851541,-1682.86693779,0.00034749,3]
[327648404,1716277851550,-1208.1449774,0.00034857,30]
[327648405,1716277851559,-27298.50628016,0.000349,2]
[327648406,1716277851569,-590.0,0.000349,2]
[327648407,1716277851578,-417.32360569,0.00034958,2]
[327648408,1716277851587,-752.31989938,0.00035,2]
[327648409,1716277851596,-301.09847871,0.00035,4]
[327648410,1716277851605,-1000.0,0.00035,15]
[327648411,1716277851614,-4224.07535635,0.00035062,2]
[327648412,1716277851623,-281.0,0.000351,8]
[327648413,1716277851632,-160.0,0.000351,12]
[327648414,1716277851641,-271.142773,0.0003518,2]
[327648415,1716277851650,-7152.15191607,0.0003518,7]
[327648416,1716277851659,-10528.2164158,0.0003518,4]
[327648417,1716277851669,-384.15198111,0.0003518,4]
[327648418,1716277851678,-518.90254778,0.0003518,4]
[327648419,1716277851687,-1537.10123778,0.0003518,4]
[327648420,1716277851696,-908.23959745,0.0003518,4]
[327648421,1716277851706,-3000.0,0.00035182,2]
[327648422,1716277851715,-1021.65999068,0.00035182,4]
[327648423,1716277851724,-151.0,0.00035182,2]
[327648424,1716277851734,-153.0,0.00035238,2]
[327648425,1716277851743,-1004.87646539,0.000353,2]
[327648426,1716277851752,-500.0,0.00035616,2]
[327648427,1716277851762,-501.26,0.00035616,2]
[327648428,1716277851771,-336.171602,0.00035616,120]
[327648429,1716277851781,-2582.22,0.00035616,3]
[327648430,1716277851792,-4031.71,0.00035616,3]
[327648431,1716277851801,-3359.76,0.00035616,3]
[327648432,1716277851811,-2799.8,0.00035616,3]
[327648433,1716277851821,-12770.44507594,0.0003563,15]
[327648434,1716277851831,-3560.40850704,0.00035638,15]
[327648435,1716277851841,-3560.40850704,0.00035638,15]
[327648436,1716277851850,-3560.40850704,0.00035638,15]
[327648437,1716277851859,-3560.40850704,0.00035638,15]
[327648438,1716277851868,-3560.40850704,0.00035638,15]
[327648439,1716277851877,-3560.40850704,0.00035638,15]
[327648440,1716277851886,-3560.40850704,0.00035638,15]
[327648441,1716277851895,-3560.40850704,0.00035638,15]
[327648442,1716277851904,-3560.40850704,0.00035638,15]
[327648443,1716277851915,-3560.40850704,0.00035638,15]
[327648444,1716277851924,-3560.40850704,0.00035638,15]
[327648445,1716277851933,-3560.40850704,0.00035638,15]
[327648446,1716277851943,-3560.40850704,0.00035638,15]
[327648447,1716277851952,-3560.40850704,0.00035638,15]
[327648448,1716277851961,-3560.40850704,0.00035638,15]
[327648449,1716277852058,-3560.40850704,0.00035638,15]
[327648450,1716277852069,-3560.40850704,0.00035638,15]
[327648451,1716277852079,-3560.40850704,0.00035638,15]
[327648452,1716277852088,-3560.40850704,0.00035638,15]
[327648453,1716277852098,-3560.40850704,0.00035638,15]
[327648454,1716277852108,-3560.40850704,0.00035638,15]
[327648455,1716277852117,-793.28233847,0.00035638,15]
[327648456,1716277852126,-793.28233847,0.00035638,15]
[327648457,1716277852135,-793.28233847,0.00035638,15]
[327648458,1716277852144,-793.28233847,0.00035638,15]
[327648459,1716277852153,-793.28233847,0.00035638,15]
[327648460,1716277852162,-793.28233847,0.00035638,15]
[327648461,1716277852171,-793.28233847,0.00035638,15]
[327648462,1716277852181,-6959.61851098,0.00035638,15]
[327648463,1716277852191,-6959.61851098,0.00035638,15]
[327648464,1716277852201,-6959.61851098,0.00035638,15]
[327648465,1716277852211,-6959.61851098,0.00035638,15]
[327648466,1716277852223,-6959.61851098,0.00035638,15]
[327648467,1716277852233,-6959.61851098,0.00035638,15]
[327648468,1716277852243,-6959.61851098,0.00035638,15]
[327648469,1716277852252,-6959.61851098,0.00035638,15]
[327648470,1716277852261,-6959.61851098,0.00035638,15]
[327648471,1716277852271,-846.16782769,0.00035638,15]
[327648472,1716277852280,-846.16782769,0.00035638,15]
[327648473,1716277852290,-846.16782769,0.00035638,15]
[327648474,1716277852299,-6959.61851098,0.00035638,15]
[327648475,1716277852308,-7260861.95959154,0.00035639,120]
[327648476,1716277852324,-22367.30384282,0.00035639,120]
[327648477,1716277852709,-569.68509871,0.00035639,120]
[327648481,1716278672816,-410.5949292,9.98e-05,2]
[327648482,1716278672839,-316.32323638,9.981e-05,2]
[327648483,1716278672863,-523.67508811,9.982e-05,2]
[327648484,1716278672887,-24870.0,0.00014911,2]
[327648485,1716278672909,-619.8458566,0.00015079,2]
[327648486,1716278683450,-283.68900956,0.00017569,2]
[327648487,1716278683470,-266.61015013,0.00017569,7]
[327648488,1716278683489,-371.21737233,0.0001757,2]
[327648489,1716278683508,-335.23659,0.0001757,2]
[327648490,1716278683528,-12002.80776769,0.00017673,2]
[327648561,1716279032188,-487.85550363,9.999e-05,2]
[327648562,1716279032197,-1151.33496091,9.999e-05,2]
[327648563,1716279032207,-23305.4237115,0.00016521,2]
[327648564,1716279032217,-250.0,0.00016649,2]
[327648565,1716279032226,-198.7612308,0.00017062,2]
[327648566,1716279032236,-337.07224635,0.00017575,2]
[327648567,1716279032246,-3978.76019136,0.00017673,2]
[327648568,1716279032256,-431.04176464,0.00017673,2]
[327648569,1716279032265,-365.04735832,0.00017673,2]
[327648570,1716279032275,-22988.50230263,0.00017673,2]
[327648593,1716279038993,-1969.2511297,0.00016327,2]
[327648594,1716279039003,-3401.01658049,0.00017673,2]
[327648595,1716279039060,-12963.84889323,0.00017673,2]
[327648596,1716279039109,-16731.86937369,0.00017673,2]
[327648597,1716279039120,-10454.14770375,0.00017898,2]
[327648598,1716279039131,-986.45755068,0.00018,2]
[327648599,1716279039141,-1281.4439248,0.00018076,2]
[327648600,1716279039152,-500.0,0.00019178,2]
[327648601,1716279039161,-500.0,0.00019178,2]
[327648602,1716279039172,-500.0,0.00019178,2]
[327648604,1716279039181,-500.0,0.00019178,2]
[327648605,1716279039192,-210.466898,0.00019178,2]
[327648607,1716279039202,-423.49547934,0.00019178,2]
[327648609,1716279039212,-500.0,0.00019178,2]
[327648611,1716279039222,-500.0,0.00019178,2]
[327648613,1716279039232,-276.40249209,0.00019178,2]
[327648615,1716279039243,-361.68768485,0.00019178,2]
[327648616,1716279039254,-216.33525598,0.00019178,2]
[327648617,1716279039265,-304.17363873,0.00019178,2]
[327648618,1716279039276,-507.2251274,0.00019178,2]
[327648619,1716279039287,-500.0,0.00019178,2]
[327648620,1716279039298,-305.3092784,0.00019178,2]
[327648621,1716279039308,-255.11296203,0.00019178,2]
[327648622,1716279039318,-500.0,0.00019178,2]
[327648623,1716279039328,-650.10581061,0.00019178,2]
[327648624,1716279039337,-500.0,0.00019178,2]
[327648625,1716279039347,-500.0,0.00019178,2]
[327648626,1716279039357,-500.0,0.00019178,2]
[327648627,1716279039367,-500.0,0.00019178,2]
[327648628,1716279039377,-500.0,0.00019178,2]
[327648629,1716279039388,-500.0,0.00019178,2]
[327648630,1716279039400,-383.7644132,0.00019178,2]
[327648631,1716279039410,-314.80282278,0.00019178,2]
[327648632,1716279039420,-500.0,0.00019178,2]
[327648633,1716279039429,-500.0,0.00019178,2]
[327648634,1716279039439,-500.0,0.00019178,2]
[327648635,1716279039449,-500.0,0.00019178,2]
[327648636,1716279039458,-500.0,0.00019178,2]
[327648637,1716279039468,-448.2759195,0.00019178,2]
[327648638,1716279039478,-645.17141798,0.00019178,2]
[327648639,1716279039487,-300.61762117,0.00019178,2]
[327648640,1716279039498,-490.89440725,0.00019178,2]
[327648641,1716279039507,-500.0,0.00019178,2]
[327648642,1716279039517,-500.0,0.00019178,2]
[327648643,1716279039526,-434.25782963,0.00019178,2]
[327648645,1716279039536,-215.01003722,0.00019178,2]
[327648646,1716279039545,-565.50204036,0.00019178,2]
[327648647,1716279039555,-500.0,0.00019178,2]
[327648648,1716279039566,-462.72833998,0.00019178,2]
[327648649,1716279039576,-565.50204036,0.00019178,2]
[327648650,1716279039586,-500.0,0.00019178,2]
[327648651,1716279039595,-227.81672039,0.00019178,2]
[327648655,1716279039744,-500.0,0.00019178,2]
[327648656,1716279039757,-500.0,0.00019178,2]
[327648657,1716279039768,-500.0,0.00019178,2]
[327648658,1716279039778,-196.50612109,0.00019178,2]
[327648660,1716279039788,-500.0,0.00019178,2]
[327648662,1716279039797,-200.0,0.00019178,2]
[327648663,1716279039807,-500.0,0.00019178,2]
[327648664,1716279039816,-500.0,0.00019178,2]
[327648665,1716279039825,-500.0,0.00019178,2]
[327648666,1716279039840,-500.0,0.00019178,2]
[327648667,1716279039850,-500.0,0.00019178,2]
[327648668,1716279039860,-500.0,0.00019178,2]
[327648669,1716279039870,-327.51020181,0.00019178,2]
[327648670,1716279039882,-500.0,0.00019178,2]
[327648671,1716279039891,-625.10379975,0.00019178,2]